[Event "USA Championship Women 2022"]
[Site "Saint Louis"]
[Date "2022.10.18"]
[Round "12.5"]
[White "Tokhirjonova, Gulrukhbegim"]
[Black "Cervantes Landeiro, Thalia"]
[Result "0-1"]
[ECO "D76"]
[WhiteElo "2336"]
[BlackElo "2272"]
[Annotator "TA"]
[PlyCount "100"]
[EventDate "2022.09.05"]
[EventType "tourn"]
[EventCountry "USA"]
[SourceTitle "playchess.com"]
[Source "ChessBase"]
[SourceQuality "1"]
[TimeControl "40/5400+30:1800+30"]

{[%evp 17,100,11,48,16,17,11,15,12,0,0,0,-23,-17,-41,29,28,54,66,78,0,0,0,0,0,0,-72,-60,-99,-31,-97,-89,-199,-200,-190,-108,-322,-313,-385,-385,-630,-639,-760,-754,-745,-734,-870,-870,-863,-861,-1041,-1013,-2065,-2065,-2025,-2005,-1962,-1313,-1313,-1313,-1313,-1306,-1295,-1286,-1282,-1282,-1242,-1225,-1924,-1815,-1630,-1489,-1925,-1782,-1951,-1912,-1875,-1875,-2146,-1166,-29978,-29980,-29980,-29981,-29977,-6279]} 1. Nf3 {[%emt 0:00:17]} Nf6 {[%emt 0:00:41]} 2. g3 {[%emt 0:00:08]} g6 {[%emt 0:00:10]} 3. Bg2 {[%emt 0:00:16]} Bg7 {[%emt 0:00:09]} 4. c4 {[%emt 0:00:55]} O-O {[%emt 0:01:11]} 5. O-O {[%emt 0:01:10]} d5 {[%emt 0:02:56]} 6. cxd5 {[%emt 0:00:29]} Nxd5 {[%emt 0:00:10]} 7. d4 {[%emt 0:00:16]} Nb6 {[%emt 0:02:16]} 8. Nc3 {[%emt 0:00:53]} Nc6 {[%emt 0:03:33]} 9. e3 {[%emt 0:01:02]} a5 {[%emt 0:04:15]} 10. Nh4 {[%emt 0:06:53] 10.d5 is becoming the main line. D76: Fianchetto Grünfeld: Main Line with 7...Nb6.} a4 {[%emt 0:04:44]} 11. Rb1 {[%emt 0:09:49]} Bd7 {[%emt 0:03:22] [#]} 12. f4 $146 {[%emt 0:00:51] The position is equal.} ({Predecessor:} 12. Qe2 Qc8 13. Rd1 Rd8 14. Bd2 Bg4 15. Bf3 Bxf3 16. Qxf3 f5 17. Be1 e5 18. dxe5 {½-½ (55) Yaksin,O (2377)-Khripachenko,A (2210) Tuapse 2021}) 12... Qc8 {[%emt 0:04:02]} 13. Nf3 {[%emt 0:05:41]} Rd8 {[%emt 0:03:30]} 14. Qe2 {[%emt 0:10:08]} Bf5 {[%emt 0:05:49]} 15. Ra1 {[%emt 0:00:32]} h6 {[%emt 0:21:15]} (15... Nb4 $15) 16. Bd2 $11 {[%emt 0:08:56]} a3 {[%emt 0:02:48]} 17. b3 {[%emt 0:01:34]} Nb4 {[%emt 0:04:00]} 18. Rfd1 {[%emt 0:05:56]} (18. Ne5 $16) 18... Bd3 {[%emt 0:03:17]} 19. Qf2 {[%emt 0:00:59][%cal Oc3a4]} Bc2 $1 {[%emt 0:06:45]} 20. Rf1 {[%emt 0:01:01][%cal Oc3a4]} c5 {[%emt 0:00:42]} (20... Nd3 $5 21. Qe2 $8 c5 $11) 21. Ne5 {[%emt 0:05:53]} (21. Na4 $11 Nxa4 22. Bxb4 cxb4 23. Rfc1) 21... Nd3 $36 {[%emt 0:06:33][%mdl 2048] Black fights for an advantage.} 22. Nxd3 {[%emt 0:03:45]} cxd4 {[%emt 0:02:10]} (22... Bxd3 $17 23. Rfc1 cxd4) 23. Ne2 {[%emt 0:11:49]} (23. Na4 $1 $15 Nxa4 24. Ne5) 23... Bxd3 {[%emt 0:02:06]} 24. Rfc1 {[%emt 0:00:50] Inhibits Qc2.} (24. Rac1 $17 Qe6 25. Rfd1) 24... dxe3 $19 {[%emt 0:03:00]} 25. Bxe3 {[%emt 0:00:33]} Qe6 {[%emt 0:00:48]} (25... Bxa1 $19 26. Bxb6 (26. Rxc8 Raxc8 27. Bxb6 Rd6 $17) 26... Qe6 27. Rxa1 Bxe2 28. Bxb7 (28. Bxd8 Rxd8 29. Bxb7 Rd1+ 30. Rxd1 Bxd1 $17) 28... Rab8 29. Bxd8 Rxd8) 26. Bxb6 {[%emt 0:08:15] This costs White the game.} (26. f5 $17 gxf5 27. Nf4 Qxe3 28. Qxe3) 26... Bxe2 {[%emt 0:02:58]} (26... Bxa1 27. Rxa1 Bxe2 28. Bxd8 Rxd8 29. Re1 $17) 27. Bxb7 {[%emt 0:08:36] [#]} Rab8 {[%emt 0:04:41][%cal Ba8b8,Bb8d8,Bd8d2][%mdl 32] White must now prevent ...Rd2.} 28. Bxd8 {[%emt 0:04:30]} (28. Re1 Rd2 29. Be3) 28... Rxd8 {[%emt 0:01:38]} ({And not} 28... Bxa1 29. Ba5 $15) 29. Kh1 {[%emt 0:00:30][%cal Oc1c2]} Bxa1 {[%emt 0:00:35]} 30. Rxa1 {[%emt 0:00:08]} Rd2 {[%emt 0:00:54]} 31. Bg2 {[%emt 0:02:25]} Qf6 {[%emt 0:01:00]} 32. Re1 {[%emt 0:00:40]} Qb2 {[%emt 0:00:05]} 33. Qc5 {[%emt 0:00:42]} Bg4 {[%emt 0:01:34]} 34. Bd5 {[%emt 0:00:31] [#]} Rxd5 $1 {[%emt 0:02:04][%mdl 512]} 35. Qxd5 {[%emt 0:00:23][%mdl 4096] Endgame [#] KQR-KQB} Qf2 $1 {[%emt 0:00:06]} 36. Qe4 {[%emt 0:00:43]} Bf3+ {[%emt 0:00:07]} 37. Qxf3 {[%emt 0:00:01]} Qxf3+ {[%emt 0:00:09] KQ-KR} 38. Kg1 {[%emt 0:00:03]} Qc3 {[%emt 0:00:19]} 39. Re2 {[%emt 0:00:12]} Qd3 {[%emt 0:00:42]} 40. Kf2 {[%emt 0:00:07]} e6 {[%emt 0:00:30]} 41. Ke1 {[%emt 0:30:06]} h5 {[%emt 0:31:26]} 42. Rd2 {[%emt 0:00:08]} Qe4+ {[%emt 0:00:00]} 43. Re2 {[%emt 0:00:00]} Qd4 {[%emt 0:00:00]} 44. Kf1 {[%emt 0:00:00]} h4 {[%emt 0:00:00]} 45. Kg2 {[%emt 0:00:00]} hxg3 {[%emt 0:00:00]} 46. hxg3 {[%emt 0:00:00]} f6 {[%emt 0:00:00]} 47. Kf3 {[%emt 0:00:00]} Kf7 {[%emt 0:00:00] Hoping for ...Qd3+.} 48. Re4 {[%emt 0:00:00]} Qd3+ {[%emt 0:00:00] Black mates.} 49. Re3 {[%emt 0:00:00]} Qf1+ {[%emt 0:00:00]} 50. Ke4 {[%emt 0:00:00]} Qb1+ {[%emt 0:00:00] Weighted Error Value: White=0.77/Black=0.27 (precise)} (50... Qg2+ $142 51. Kd3 Qxa2 52. b4 Qb3+ 53. Ke2 Qxb4 54. Rd3 Qe4+ 55. Re3 Qg2+ 56. Kd3 Qf1+ 57. Kd2 Qf2+ 58. Re2 Qd4+ 59. Kc2 a2 60. Re1 Qf2+ 61. Kb3 Qxe1 62. Kxa2 Qc3 63. f5 exf5 64. Kb1 Qd2 65. Ka1 Ke6 66. g4 fxg4 67. Kb1 g3 68. Ka1 g2 69. Kb1 g1=Q#) 0-1

[Event "USA Championship Women 2022"]
[Site "Saint Louis"]
[Date "2022.10.18"]
[Round "12.6"]
[White "Yu, Jennifer"]
[Black "Krush, Irina"]
[Result "0-1"]
[ECO "E76"]
[WhiteElo "2297"]
[BlackElo "2432"]
[Annotator "TA"]
[PlyCount "76"]
[EventDate "2022.09.05"]
[EventType "tourn"]
[EventCountry "USA"]
[SourceTitle "playchess.com"]
[Source "ChessBase"]
[SourceQuality "1"]
[TimeControl "40/5400+30:1800+30"]

{[%evp 15,76,0,0,-8,-3,-10,0,-66,-66,-70,-78,-83,-43,-45,-43,-64,-47,-52,-57,-52,-29,-108,-115,-100,-112,-107,-121,-140,-83,-80,-79,-77,-45,-45,-45,-45,-45,-45,-45,-59,-59,-45,-36,-36,155,143,133,-760,-748,-866,-762,-1046,-848,-829,-827,-29973,-29973,-6821,-6395,-29991,-29992,-29992,-29993]} 1. d4 {[%emt 0:02:02]} Nf6 {[%emt 0:00:17]} 2. c4 {[%emt 0:00:42]} c5 {[%emt 0:00:10]} 3. d5 {[%emt 0:00:31]} g6 {[%emt 0:00:19]} 4. Nc3 {[%emt 0:01:45]} Bg7 {[%emt 0:00:09]} 5. e4 {[%emt 0:03:58]} d6 {[%emt 0:00:17]} 6. f4 {[%emt 0:01:48]} O-O {[%emt 0:00:37]} 7. Nf3 {[%emt 0:00:16]} e6 {[%emt 0:00:09]} 8. dxe6 {[%emt 0:10:29]} fxe6 {[%emt 0:00:22]} 9. Be2 {[%emt 0:01:28] E76: King's Indian: Four Pawns Attack: Lines specific to 6 Nf3 move-order.} Nc6 {[%emt 0:05:36]} 10. O-O {[%emt 0:01:06]} b6 {[%emt 0:12:57] [#]} 11. Ne1 $146 {[%emt 0:22:04]} ({White should try} 11. Ng5 $11) ({Predecessor:} 11. Kh1 Bb7 12. Be3 Qd7 13. Qd2 Ne7 14. Bd3 d5 15. e5 Ng4 16. Bg1 Bh6 17. Ne2 {0-1 (62) Dubov,D (2660)-Pichot,A (2544) Doha 2016}) 11... Bb7 $15 {[%emt 0:01:47]} 12. Be3 {[%emt 0:02:31]} Nd4 {[%emt 0:02:43]} 13. Bd3 {[%emt 0:00:24]} Qe7 {[%emt 0:02:58]} 14. Nc2 {[%emt 0:03:25]} Nd7 {[%emt 0:06:07]} 15. Rb1 {[%emt 0:04:29]} Rf7 {[%emt 0:03:46] Black is more active.} 16. Qd2 {[%emt 0:11:48]} Raf8 {[%emt 0:01:22]} 17. Rbe1 {[%emt 0:00:07]} e5 {[%emt 0:11:12]} 18. Nd5 {[%emt 0:04:59]} (18. f5 $1 $11 {keeps the balance.}) 18... Bxd5 $17 {[%emt 0:00:33]} 19. exd5 {[%emt 0:00:16]} Nxc2 {[%emt 0:07:25]} 20. Bxc2 {[%emt 0:09:06] [#]} exf4 $1 {[%emt 0:00:24]} 21. Rxf4 {[%emt 0:01:29]} Rxf4 {[%emt 0:04:17]} (21... Bxb2 $142 {Threatens to win with ...Rxf4.} 22. Rxf7 Qxf7) 22. Bxf4 {[%emt 0:00:10]} Bd4+ {[%emt 0:00:12]} 23. Kh1 {[%emt 0:00:18]} Qf6 {[%emt 0:09:25]} ({Reject} 23... Rxf4 24. g3 Rf7 25. Rxe7 Rxe7 26. Bd1 $11) 24. g3 {[%emt 0:00:38]} Ne5 {[%emt 0:01:06] White must now prevent ...Nf3.} 25. Qe2 {[%emt 0:05:57] Prevents Nf3.} Bxb2 {[%emt 0:01:00]} 26. h4 {[%emt 0:00:04]} Bd4 $36 {[%emt 0:03:29][%mdl 2048] Black is pushing.} 27. Kg2 {[%emt 0:01:47]} Qe7 {[%emt 0:11:45]} 28. Rf1 {[%emt 0:00:33]} Qd7 {[%emt 0:02:16]} 29. Bxe5 {[%emt 0:07:09]} Re8 {[%emt 0:03:56] [#]} (29... Bxe5 $15 {stays ahead.} 30. Rxf8+ Kxf8) 30. Qf3 $1 $16 {[%emt 0:00:39][%cal Oc2a4] Ba4! is the strong threat.} Bxe5 {[%emt 0:00:23]} 31. Ba4 $2 {[%emt 0:00:15][%mdl 8192] This costs White the game.} Qxa4 $19 {[%emt 0:00:33]} 32. Qf7+ {[%emt 0:00:10]} Kh8 {[%emt 0:00:01]} 33. h5 {[%emt 0:00:18]} gxh5 {[%emt 0:02:16] Strongly threatening ...Rg8.} 34. Rf5 {[%emt 0:00:56]} Bd4 {[%emt 0:00:56]} 35. Rg5 {[%emt 0:03:39] Inhibits Rg8.} Qc2+ {[%emt 0:01:01]} 36. Kh3 {[%emt 0:00:03]} Qe4 {[%emt 0:00:21][%cal Re4h1]} 37. Rxh5 {[%emt 0:00:17]} Qh1+ {[%emt 0:01:32]} 38. Kg4 {[%emt 0:00:03]} Re4+ {[%emt 0:00:38] Weighted Error Value: White=0.81/Black=0.26 (precise)} 0-1

[Event "USA Championship Women 2022"]
[Site "Saint Louis"]
[Date "2022.10.18"]
[Round "12.7"]
[White "Lee, Megan"]
[Black "Morris-Suzuki, Sophie"]
[Result "0-1"]
[ECO "B33"]
[WhiteElo "2226"]
[BlackElo "2126"]
[Annotator "TA"]
[PlyCount "120"]
[EventDate "2022.09.05"]
[EventType "tourn"]
[EventCountry "USA"]
[SourceTitle "playchess.com"]
[Source "ChessBase"]
[SourceQuality "1"]
[TimeControl "40/5400+30:1800+30"]

{[%evp 21,119,18,31,29,30,0,12,10,19,6,21,-6,-6,-2,0,-10,0,0,0,0,0,-27,0,-141,-141,-110,-142,-175,-157,-143,0,-82,-72,-67,-72,-92,-52,-95,-93,-101,-90,-91,-90,-97,-90,-98,-74,-144,-116,-124,-93,-293,-296,-254,-275,-289,-293,-303,-297,-281,-196,-197,-185,-434,-320,-828,-810,-994,-713,-29961,-29960,-29982,-409,-29984,-29985,-29988,-29986,-29995,-29996,-29997,-29988,-29988,-29989,-29989,-29990,-29994,-29991,-29992,-29991,-29991,-29987,-29988,-29989,-29982,-1546,-29997,-29998,-29998,-29999,-29999]} 1. e4 {[%emt 0:00:02]} c5 {[%emt 0:00:08]} 2. Nf3 {[%emt 0:00:04]} Nc6 {[%emt 0:00:14]} 3. d4 {[%emt 0:00:26]} cxd4 {[%emt 0:00:09]} 4. Nxd4 {[%emt 0:00:01]} Qb6 {[%emt 0:00:15]} 5. Nb3 {[%emt 0:00:32]} Nf6 {[%emt 0:00:10]} 6. Nc3 {[%emt 0:02:01]} e6 {[%emt 0:00:11]} 7. Be3 {[%emt 0:02:49]} Qc7 {[%emt 0:00:09]} 8. a3 {[%emt 0:04:31]} a6 {[%emt 0:00:08]} 9. f4 {[%emt 0:03:52]} d6 {[%emt 0:00:08]} 10. Be2 {[%emt 0:02:25]} b5 {[%emt 0:00:37]} 11. Bf3 {[%emt 0:03:24]} Bb7 {[%emt 0:00:14]} 12. Qe2 {[%emt 0:02:38] B33: Sicilian: Pelikan and Sveshnikov Variations.} Be7 {[%emt 0:00:25]} 13. Qf2 {[%emt 0:04:26]} O-O {[%emt 0:04:25]} 14. O-O {[%emt 0:02:11] The position is equal.} Nd7 {[%emt 0:07:20]} 15. Rad1 {[%emt 0:04:36]} Bf6 {[%emt 0:06:39] [#]} 16. Nb1 $146 {[%emt 0:09:29]} ({Predecessor:} 16. Qd2 Nb6 17. Bxb6 Qxb6+ 18. Kh1 Rfd8 19. g4 g5 20. Bg2 h6 21. Rf3 Rac8 22. h4 gxh4 {0-1 (38) Ketola,V (2136)-Pudas,T (2201) Finland 2010}) 16... a5 {[%emt 0:05:22]} (16... Bxb2 $2 17. c3 $18) 17. c3 {[%emt 0:02:49]} e5 {[%emt 0:13:08]} 18. f5 {[%emt 0:05:05]} a4 {[%emt 0:01:28]} 19. Nc1 {[%emt 0:06:10]} Na5 {[%emt 0:01:57]} 20. Nd2 {[%emt 0:02:49]} Nc5 {[%emt 0:04:36] Inhibits Nd3.} 21. g4 {[%emt 0:01:40]} Qe7 {[%emt 0:00:45]} 22. Be2 {[%emt 0:11:29]} (22. Qe2 $11) 22... Nxe4 $17 {[%emt 0:05:16] Black is more active.} 23. Nxe4 {[%emt 0:00:16]} Bxe4 {[%emt 0:00:07]} 24. Bxb5 {[%emt 0:01:08]} Rab8 {[%emt 0:03:32]} 25. Ba6 {[%emt 0:07:29]} Ra8 {[%emt 0:14:56]} (25... Bh4 $17 26. Qd2 Qc7) 26. Bd3 {[%emt 0:02:17]} (26. Bb5 $1 $11 {remains equal.}) 26... Bb7 {[%emt 0:00:17]} 27. Na2 {[%emt 0:01:36]} Rfc8 {[%emt 0:10:26]} 28. Nb4 {[%emt 0:03:08]} d5 {[%emt 0:01:42]} 29. Qg3 {[%emt 0:04:59]} h6 {[%emt 0:02:49] Against g5} 30. Bf2 {[%emt 0:02:17]} Rd8 {[%emt 0:04:03]} 31. Rfe1 {[%emt 0:01:25]} Nc4 {[%emt 0:03:25]} 32. Re2 {[%emt 0:03:09]} e4 {[%emt 0:00:02] Threatens to win with ...Be5.} 33. Bxc4 {[%emt 0:00:39]} dxc4 {[%emt 0:00:02]} 34. Bd4 {[%emt 0:02:06]} ({White should try} 34. Rde1) 34... Bg5 {[%emt 0:01:57][%cal Oe4e3]} 35. Rf1 {[%emt 0:01:30][%cal Of5f6] [#]} e3 $1 {[%emt 0:00:59] White must now prevent ...Qe4.} 36. Bxe3 $2 {[%emt 0:00:44] Now White is beyond hope.} (36. h3 $17) 36... Re8 $19 {[%emt 0:01:20]} 37. Nc2 {[%emt 0:00:45]} ({Much worse is} 37. Rfe1 Bh4 38. Qf4 Bxe1 39. Rxe1 Qh4) 37... Rad8 {[%emt 0:00:41] Against Rd1} ({Don't go for} 37... Qe4 $2 38. h4 Qh1+ 39. Kf2 Bxh4 40. Rxh1 $19) 38. Bxg5 {[%emt 0:01:06]} Qxe2 {[%emt 0:01:38]} 39. Bxd8 {[%emt 0:00:06] Strongly threatening Re1.} Qxc2 {[%emt 0:00:16]} ({Inferior is} 39... Rxd8 40. Nd4 Qxb2 41. f6 $17) 40. Bb6 {[%emt 0:00:41] Prevents Re3.} Qxb2 {[%emt 0:06:01]} 41. Bf2 {[%emt 0:03:44]} Qxa3 {[%emt 0:18:17]} 42. f6 $2 {[%emt 0:03:32]} (42. g5 hxg5 43. f6) 42... gxf6 {[%emt 0:00:40]} 43. Bd4 $2 {[%emt 0:08:31]} (43. h4) 43... Qe7 {[%emt 0:04:55]} 44. h4 {[%emt 0:09:14]} a3 {[%emt 0:04:00] Hoping for ...Qe2.} 45. Ra1 {[%emt 0:05:36]} Qe2 {[%emt 0:05:18]} 46. g5 {[%emt 0:00:16]} Kh7 {[%emt 0:00:37]} (46... Re4 $142 47. Qb8+ Kh7 48. Qg3 Rg4 49. Qxg4 Qxg4+ 50. Kf2 Qf3+ 51. Ke1 Qh1+ 52. Ke2 Qxa1 53. Bxf6 a2 54. h5 hxg5 55. Bxg5 Qxc3 56. Bf6 Qxf6 57. Kd2 a1=Q 58. Ke2 Qf3+ 59. Kd2 Qf2#) 47. Rf1 {[%emt 0:01:02] [#]} (47. g6+ $19 fxg6 48. Bxf6) 47... a2 {[%emt 0:01:28]} 48. Ra1 {[%emt 0:02:14]} Re4 {[%emt 0:00:45]} 49. Rxa2 {[%emt 0:00:17]} Qd1+ {[%emt 0:00:24]} 50. Kh2 {[%emt 0:00:11]} Rg4 {[%emt 0:00:24][%csl Gb7][%cal Rd1h1]} 51. g6+ {[%emt 0:01:51]} Rxg6 {[%emt 0:00:10]} 52. Qxg6+ {[%emt 0:00:24]} Kxg6 {[%emt 0:00:16]} 53. Rf2 {[%emt 0:00:16]} Qh1+ {[%emt 0:00:07]} 54. Kg3 {[%emt 0:00:01]} Qg1+ {[%emt 0:00:11]} 55. Kf4 {[%emt 0:00:10]} f5 {[%emt 0:00:24]} 56. h5+ {[%emt 0:00:42]} Kxh5 {[%emt 0:00:26]} 57. Ke5 {[%emt 0:00:16]} Qe1+ {[%emt 0:00:30]} (57... Qg3+ $142 58. Rf4 Kg6 59. Kd6 Qxf4+ 60. Kc5 Qc7+ 61. Kb4 Ba6 62. Ka3 Qb7 63. Bb6 Qxb6 64. Ka2 h5 65. Ka1 Bb7 66. Ka2 Be4 67. Ka3 Qb3#) 58. Kxf5 {[%emt 0:00:31]} Qe6+ {[%emt 0:00:49] Black mates.} 59. Kf4 {[%emt 0:00:08]} Qe4+ {[%emt 0:00:27]} 60. Kg3 {[%emt 0:00:04]} Qh4# {[%emt 0:00:09] Weighted Error Value: White=0.67/Black=0.31} 0-1

[Event "USA Championship Women 2022"]
[Site "Saint Louis"]
[Date "2022.10.19"]
[Round "13.1"]
[White "Krush, Irina"]
[Black "Zatonskih, Anna"]
[Result "1/2-1/2"]
[ECO "D35"]
[WhiteElo "2432"]
[BlackElo "2368"]
[Annotator "TA"]
[PlyCount "173"]
[EventDate "2022.09.05"]
[EventType "tourn"]
[EventCountry "USA"]
[SourceTitle "playchess.com"]
[Source "ChessBase"]
[SourceQuality "1"]
[TimeControl "40/5400+30:1800+30"]

{[%evp 15,173,28,27,14,27,21,25,18,30,20,20,22,25,6,29,10,16,12,8,12,12,16,22,24,26,14,26,16,22,11,17,6,15,15,19,8,10,5,18,9,10,18,15,15,40,36,57,38,37,32,37,36,31,33,42,34,49,47,76,68,66,43,75,16,24,18,20,0,22,20,31,20,43,26,100,50,44,44,49,22,34,35,67,84,73,69,68,71,69,50,54,44,51,47,54,10,34,43,69,20,20,21,53,62,111,0,0,0,0,0,0,0,0,0,18,0,0,0,0,0,0,0,0,0,0,0,0,0,0,0,0,0,0,0,7,0,0,0,0,0,0,0,0,0,0,0,0,0,0,0,0,0,0,0,0,0,0,0,0,0]} 1. d4 {[%emt 0:05:09]} d5 {[%emt 0:00:11]} 2. c4 {[%emt 0:00:09]} e6 {[%emt 0:00:06]} 3. Nc3 {[%emt 0:00:13]} Nf6 {[%emt 0:00:20]} 4. cxd5 {[%emt 0:00:14]} exd5 {[%emt 0:00:07]} 5. Bg5 {[%emt 0:00:14]} c6 {[%emt 0:01:00]} 6. e3 {[%emt 0:00:12]} Be7 {[%emt 0:00:07]} 7. Bd3 {[%emt 0:00:14]} Nbd7 {[%emt 0:00:50][%cal Bb8d7,Bd7f8,Bf8e6,Be6f4][%mdl 32]} 8. Nf3 {[%emt 0:00:32]} Nf8 $1 {[%emt 0:18:20]} 9. Ne5 {[%emt 0:03:28] D35: Queen's Gambit Declined: Exchange Variation.} N6d7 {[%emt 0:12:02]} 10. Bxe7 {[%emt 0:01:05]} Qxe7 {[%emt 0:00:02]} 11. Nf3 {[%emt 0:00:29] White has an edge.} Ne6 {[%emt 0:15:24]} 12. Qc2 {[%emt 0:01:29]} Nf4 {[%emt 0:03:25]} 13. Bf1 {[%emt 0:01:10]} Nb6 {[%emt 0:04:56]} 14. O-O-O {[%emt 0:05:24] [#]} Ng6 $146 {[%emt 0:01:01]} ({Predecessor:} 14... Ne6 15. Kb1 Ng5 16. h4 Nxf3 17. gxf3 Be6 18. Bd3 O-O-O 19. Rdg1 g6 20. h5 Kb8 21. f4 Qf6 22. hxg6 hxg6 {½-½ (26) Sjugirov,S (2663)-Andreikin,D (2728) Chess.com INT 2021}) 15. h3 {[%emt 0:00:40]} Be6 {[%emt 0:01:02]} 16. Kb1 {[%emt 0:02:37]} Nh4 {[%emt 0:14:15]} 17. Nxh4 {[%emt 0:08:51]} Qxh4 {[%emt 0:00:26]} 18. Bd3 {[%emt 0:00:05]} Qe7 {[%emt 0:04:58]} 19. Ka1 {[%emt 0:00:34]} g6 {[%emt 0:01:12]} 20. Rc1 {[%emt 0:11:04]} Qb4 {[%emt 0:03:06]} 21. h4 {[%emt 0:03:07]} O-O-O {[%emt 0:01:33]} 22. Nb1 {[%emt 0:09:35][%cal Bc3b1,Bb1d2,Bd2b3,Bb3d4,Bd4f3,Bf3d4][%mdl 32]} Kb8 {[%emt 0:00:17]} 23. Nd2 {[%emt 0:01:25]} Rc8 {[%emt 0:01:04]} 24. Nb3 {[%emt 0:03:15]} Nd7 {[%emt 0:00:42]} 25. Qe2 {[%emt 0:04:59]} Qe7 {[%emt 0:02:09]} 26. Qd2 {[%emt 0:00:49]} c5 {[%emt 0:01:57]} 27. dxc5 {[%emt 0:01:13]} Nxc5 {[%emt 0:00:02]} 28. Nd4 {[%emt 0:01:32]} Bd7 {[%emt 0:03:06]} 29. Bb1 {[%emt 0:03:54]} Ne6 {[%emt 0:03:31]} 30. Nf3 {[%emt 0:02:31]} Qd6 {[%emt 0:00:01]} 31. Rcd1 {[%emt 0:03:53]} Bc6 {[%emt 0:01:01]} 32. Nd4 {[%emt 0:01:51]} Ba4 {[%emt 0:01:46]} 33. Rc1 {[%emt 0:05:35]} Bd7 {[%emt 0:01:38]} 34. a3 {[%emt 0:01:09]} Rhd8 {[%emt 0:03:36]} 35. Ba2 {[%emt 0:00:32]} Rxc1+ {[%emt 0:01:39]} 36. Rxc1 {[%emt 0:00:09]} Nxd4 {[%emt 0:00:38]} 37. Qxd4 {[%emt 0:00:21]} Be6 {[%emt 0:00:50]} 38. g3 {[%emt 0:02:54] White is more active.} Qb6 {[%emt 0:00:34]} 39. Qf6 {[%emt 0:05:24]} (39. Qxb6 $16 axb6 40. Bb3) 39... a6 $11 {[%emt 0:00:08]} 40. Rd1 {[%emt 0:05:02][%cal Od1d5]} Ka7 {[%emt 0:00:09]} 41. Qe5 {[%emt 0:36:00]} Qc5 {[%emt 0:10:26]} 42. Bb3 {[%emt 0:00:00]} Rd7 {[%emt 0:08:18]} 43. Ka2 {[%emt 0:00:00]} Kb6 {[%emt 0:06:56][%cal Od5d4]} 44. Rd4 {[%emt 0:00:00]} Qc7 {[%emt 0:02:23]} (44... h5 $11 {keeps the balance.}) 45. Rb4+ {[%emt 0:00:00]} (45. Qg7 $16) 45... Ka7 $14 {[%emt 0:00:05]} 46. Qd4+ {[%emt 0:00:00]} b6 {[%emt 0:02:56]} 47. Qd2 {[%emt 0:00:00]} h5 {[%emt 0:00:47]} 48. Rd4 {[%emt 0:00:00]} Qc6 {[%emt 0:01:16]} 49. Ba4 {[%emt 0:00:00]} b5 {[%emt 0:00:02]} 50. Bb3 {[%emt 0:00:00]} Kb6 {[%emt 0:00:43]} 51. a4 {[%emt 0:00:00]} Kc7 {[%emt 0:01:52]} 52. a5 {[%emt 0:00:00]} Kd8 {[%emt 0:00:25]} 53. Rd3 {[%emt 0:00:32]} Qd6 {[%emt 0:00:28]} 54. Qc3 {[%emt 0:01:08]} Ke7 {[%emt 0:00:25]} 55. Rd1 {[%emt 0:03:14]} Rc7 {[%emt 0:01:07]} (55... b4 $5 {[%cal Rb4c3]} 56. Qd4 Rb7 $11) 56. Qd4 {[%emt 0:00:34]} Qc5 {[%emt 0:00:05]} 57. Qxc5+ {[%emt 0:03:19]} (57. Bxd5 $14 {deserves consideration.} Bxd5+ 58. Qxd5) 57... Rxc5 {[%emt 0:00:01][%mdl 4096] Endgame KRB-KRB} 58. Ka3 {[%emt 0:00:10]} b4+ {[%emt 0:00:46]} 59. Ka4 {[%emt 0:00:58]} Kd6 {[%emt 0:00:18] [#]} (59... f5 $14 {feels stronger.}) 60. Rd4 {[%emt 0:00:25]} ({Much worse is} 60. Kxb4 $6 Rb5+ 61. Kc3 Rc5+ 62. Kd2 Rb5 $11) ({White should play} 60. e4 $1 $16) 60... Bd7+ $11 {[%emt 0:00:15] The position is equal.} 61. Kxb4 {[%emt 0:00:10] Threatens to win with e4.} Rb5+ {[%emt 0:00:11]} 62. Kc3 {[%emt 0:00:16]} Rxa5 {[%emt 0:00:04]} 63. e4 {[%emt 0:01:36][%cal Rd4d5]} Rc5+ {[%emt 0:00:56]} 64. Kd2 {[%emt 0:00:16][%cal Rd4d5]} Bc6 {[%emt 0:00:20]} 65. exd5 {[%emt 0:00:46]} Bxd5 {[%emt 0:00:04]} 66. Bxd5 {[%emt 0:00:28]} Rxd5 {[%emt 0:00:01] KR-KR} 67. Kc3 {[%emt 0:00:24]} Ke5 {[%emt 0:02:03]} 68. Rf4 {[%emt 0:00:33]} f6 {[%emt 0:00:20]} 69. b4 {[%emt 0:00:37]} g5 {[%emt 0:00:20]} 70. hxg5 {[%emt 0:00:07]} fxg5 {[%emt 0:00:01]} 71. Rf8 {[%emt 0:00:19]} Ke4 {[%emt 0:00:25]} 72. Kc4 {[%emt 0:00:50] [#] f3+ is the strong threat.} Rf5 {[%emt 0:00:19] Inhibits f3+.} 73. Ra8 {[%emt 0:00:29]} Kf3 {[%emt 0:00:17] Strongly threatening ...Rf6.} 74. Rxa6 {[%emt 0:00:19] Black must now prevent Ra5.} Kxf2 {[%emt 0:00:03]} 75. Ra3 {[%emt 0:00:32]} g4 {[%emt 0:01:24]} 76. Ra5 {[%emt 0:00:48]} Rf8 {[%emt 0:02:10]} 77. Rxh5 {[%emt 0:00:10]} Kxg3 {[%emt 0:00:05]} 78. Rg5 {[%emt 0:00:30]} Kf3 {[%emt 0:00:26]} 79. b5 {[%emt 0:00:16]} g3 {[%emt 0:00:03]} 80. b6 {[%emt 0:00:27]} g2 {[%emt 0:00:08]} 81. Kd5 {[%emt 0:00:39]} ({Don't go for} 81. b7 $2 Rb8 82. Rf5+ Kg4 $19) 81... Kf2 {[%emt 0:00:29]} 82. Kc6 {[%emt 0:00:27]} g1=Q {[%emt 0:00:41]} 83. Rxg1 {[%emt 0:00:11]} Kxg1 {[%emt 0:00:02]} 84. b7 {[%emt 0:00:14]} Kf2 {[%emt 0:00:04]} 85. Kc7 {[%emt 0:00:05]} Ke3 {[%emt 0:00:09]} 86. b8=Q {[%emt 0:00:08]} Rxb8 {[%emt 0:00:03]} 87. Kxb8 {[%emt 0:00:07] Weighted Error Value: White=0.12 (very precise) /Black=0.11 (very precise)} 1/2-1/2